[Event "Titled Tuesday Blitz May 17 Early 2022"]
[White "Jarovinsky, Alexey"]
[Black "Kobo, Ori"]
[WhiteFideId "14115131"]
[BlackFideId "2812320"]
[WhiteElo "2446"]
[BlackElo "2420"]
[Result "1-0"]
[Round "09"]
[TimeControl "180+1"]
[Date "2022.05.17"]
[WhiteClock "0:00:09"]
[BlackClock "0:00:03"]

1. Nc3 {[%clk 0:03:00]}  g6 {[%clk 0:03:00]} 2. h4 {[%clk 0:03:00]}  Bg7 {[%clk 0:02:56]} 3. h5 {[%clk 0:03:00]}  d5 {[%clk 0:02:53]} 4. e4 {[%clk 0:02:56]}  d4 {[%clk 0:02:46]} 5. Nce2 {[%clk 0:02:55]}  c5 {[%clk 0:02:36]} 6. Ng3 {[%clk 0:02:54]}  Nc6 {[%clk 0:02:35]} 7. Bb5 {[%clk 0:02:52]}  Bd7 {[%clk 0:02:32]} 8. Nf3 {[%clk 0:02:47]}  Nf6 {[%clk 0:02:22]} 9. Bxc6 {[%clk 0:02:42]}  Bxc6 {[%clk 0:02:22]} 10. d3 {[%clk 0:02:42]}  Qc7 {[%clk 0:02:16]} 11. Bg5 {[%clk 0:02:18]}  Ng4 {[%clk 0:02:06]} 12. h6 {[%clk 0:02:08]}  Bf6 {[%clk 0:02:04]} 13. Bxf6 {[%clk 0:01:57]}  exf6 {[%clk 0:01:50]} 14. Qe2 {[%clk 0:01:31]}  Qf4 {[%clk 0:01:32]} 15. Rh4 {[%clk 0:01:24]}  O-O {[%clk 0:00:30]} 16. Nh2 {[%clk 0:01:09]}  f5 {[%clk 0:00:30]} 17. Nxg4 {[%clk 0:01:08]}  fxg4 {[%clk 0:00:30]} 18. Qxg4 {[%clk 0:01:06]}  Qxg4 {[%clk 0:00:24]} 19. Rxg4 {[%clk 0:01:07]}  Rae8 {[%clk 0:00:16]} 20. Kd2 {[%clk 0:01:01]}  Kh8 {[%clk 0:00:16]} 21. f3 {[%clk 0:00:42]}  f6 {[%clk 0:00:16]} 22. Rh4 {[%clk 0:00:38]}  a5 {[%clk 0:00:14]} 23. Re1 {[%clk 0:00:35]}  b5 {[%clk 0:00:12]} 24. Rhh1 {[%clk 0:00:30]}  a4 {[%clk 0:00:06]} 25. Re2 {[%clk 0:00:26]}  Kg8 {[%clk 0:00:06]} 26. Rhe1 {[%clk 0:00:24]}  Kf7 {[%clk 0:00:07]} 27. f4 {[%clk 0:00:23]}  Rd8 {[%clk 0:00:02]} 28. Nf1 {[%clk 0:00:19]}  b4 {[%clk 0:00:02]} 29. g4 {[%clk 0:00:17]}  Bb5 {[%clk 0:00:03]} 30. b3 {[%clk 0:00:16]}  axb3 {[%clk 0:00:03]} 31. axb3 {[%clk 0:00:17]}  Ra8 {[%clk 0:00:03]} 32. Ng3 {[%clk 0:00:15]}  Ra2 {[%clk 0:00:03]} 33. e5 {[%clk 0:00:16]}  Kg8 {[%clk 0:00:02]} 34. f5 {[%clk 0:00:13]}  fxe5 {[%clk 0:00:02]} 35. Rxe5 {[%clk 0:00:13]}  gxf5 {[%clk 0:00:02]} 36. Nxf5 {[%clk 0:00:12]}  Bd7 {[%clk 0:00:02]} 37. Rxc5 {[%clk 0:00:09]}  Bxf5 {[%clk 0:00:02]} 38. Rxf5 {[%clk 0:00:09]}  Rxf5 {[%clk 0:00:02]} 39. gxf5 {[%clk 0:00:10]}  Kf7 {[%clk 0:00:03]} 40. Rg1 {[%clk 0:00:09]}  Kf6 {[%clk 0:00:02]} 41. Rg7 {[%clk 0:00:09]}  Kxf5 {[%clk 0:00:03]} 42. Rxh7 {[%clk 0:00:09]}  Kg6 {[%clk 0:00:03]} 43. Rd7 {[%clk 0:00:09]}  Kxh6 {[%clk 0:00:03]} 44. Rxd4 {[%clk 0:00:09]} 1-0


[Site "https://www.chess.com"]

[Event "Titled Tuesday Blitz May 17 Early 2022"]
[White "Kosteniuk, Alexandra"]
[Black "Harsha Bharathakoti"]
[WhiteFideId "4128125"]
[BlackFideId "5078776"]
[WhiteElo "2469"]
[BlackElo "2575"]
[Result "0-1"]
[Round "09"]
[TimeControl "180+1"]
[Date "2022.05.17"]
[WhiteClock "0:00:23"]
[BlackClock "0:00:09"]

1. e4 {[%clk 0:03:00]}  Nf6 {[%clk 0:02:59]} 2. e5 {[%clk 0:03:00]}  Nd5 {[%clk 0:03:00]} 3. d4 {[%clk 0:03:01]}  d6 {[%clk 0:03:00]} 4. Nf3 {[%clk 0:03:02]}  g6 {[%clk 0:03:01]} 5. Bc4 {[%clk 0:03:01]}  Nb6 {[%clk 0:03:00]} 6. Bb3 {[%clk 0:03:01]}  Bg7 {[%clk 0:03:01]} 7. O-O {[%clk 0:03:01]}  O-O {[%clk 0:03:01]} 8. a4 {[%clk 0:03:01]}  Nc6 {[%clk 0:02:33]} 9. a5 {[%clk 0:02:57]}  Nd7 {[%clk 0:02:33]} 10. exd6 {[%clk 0:02:53]}  cxd6 {[%clk 0:02:28]} 11. c3 {[%clk 0:02:53]}  Nxa5 {[%clk 0:02:27]} 12. Ba2 {[%clk 0:02:49]}  Nc6 {[%clk 0:02:18]} 13. Ng5 {[%clk 0:02:45]}  Nf6 {[%clk 0:02:09]} 14. Nd2 {[%clk 0:02:34]}  d5 {[%clk 0:02:05]} 15. Re1 {[%clk 0:02:30]}  Bf5 {[%clk 0:01:59]} 16. Qe2 {[%clk 0:02:24]}  h6 {[%clk 0:01:51]} 17. Ngf3 {[%clk 0:02:23]}  Ne4 {[%clk 0:01:35]} 18. Nxe4 {[%clk 0:02:21]}  Bxe4 {[%clk 0:01:36]} 19. Nd2 {[%clk 0:02:15]}  Bf5 {[%clk 0:01:36]} 20. b4 {[%clk 0:02:13]}  a6 {[%clk 0:01:35]} 21. Bb2 {[%clk 0:02:07]}  g5 {[%clk 0:01:25]} 22. Nb3 {[%clk 0:01:59]}  e6 {[%clk 0:01:25]} 23. Bb1 {[%clk 0:01:41]}  Bxb1 {[%clk 0:01:24]} 24. Rexb1 {[%clk 0:01:42]}  Na7 {[%clk 0:01:16]} 25. Nc5 {[%clk 0:01:41]}  Qc7 {[%clk 0:01:16]} 26. Bc1 {[%clk 0:01:40]}  Nb5 {[%clk 0:01:14]} 27. Bd2 {[%clk 0:01:40]}  Nd6 {[%clk 0:01:08]} 28. h4 {[%clk 0:01:39]}  gxh4 {[%clk 0:00:57]} 29. Bf4 {[%clk 0:01:34]}  Rad8 {[%clk 0:00:54]} 30. Qg4 {[%clk 0:01:30]}  Kh7 {[%clk 0:00:44]} 31. Qxh4 {[%clk 0:01:28]}  Qc6 {[%clk 0:00:41]} 32. Rd1 {[%clk 0:01:04]}  Nf5 {[%clk 0:00:40]} 33. Qh5 {[%clk 0:01:04]}  b6 {[%clk 0:00:29]} 34. Na4 {[%clk 0:00:57]}  Qb5 {[%clk 0:00:19]} 35. g4 {[%clk 0:00:56]}  Ne7 {[%clk 0:00:18]} 36. Nb2 {[%clk 0:00:54]}  Ng6 {[%clk 0:00:18]} 37. Bd2 {[%clk 0:00:52]}  Qe2 {[%clk 0:00:17]} 38. Qh3 {[%clk 0:00:40]}  f5 {[%clk 0:00:17]} 39. g5 {[%clk 0:00:39]}  h5 {[%clk 0:00:16]} 40. f3 {[%clk 0:00:32]}  Kg8 {[%clk 0:00:12]} 41. Nd3 {[%clk 0:00:27]}  Qxd3 {[%clk 0:00:09]} 42. Kf2 {[%clk 0:00:23]}  h4 {[%clk 0:00:09]} 0-1


[Site "https://www.chess.com"]

[Event "Titled Tuesday Blitz May 17 Early 2022"]
[White "Matinian, Nikita"]
[Black "Aghasiyev, Kamal"]
[WhiteFideId "24129100"]
[BlackFideId "13402854"]
[WhiteElo "2422"]
[BlackElo "2210"]
[Result "1-0"]
[Round "09"]
[TimeControl "180+1"]
[Date "2022.05.17"]
[WhiteClock "0:00:45"]
[BlackClock "0:00:01"]

1. e4 {[%clk 0:03:00]}  e5 {[%clk 0:02:59]} 2. Nf3 {[%clk 0:03:00]}  Nc6 {[%clk 0:02:58]} 3. Bb5 {[%clk 0:03:00]}  a6 {[%clk 0:02:58]} 4. Ba4 {[%clk 0:03:01]}  Nf6 {[%clk 0:02:57]} 5. O-O {[%clk 0:03:02]}  b5 {[%clk 0:02:57]} 6. Bb3 {[%clk 0:03:02]}  Bc5 {[%clk 0:02:57]} 7. c3 {[%clk 0:03:00]}  d6 {[%clk 0:02:56]} 8. d4 {[%clk 0:03:00]}  Bb6 {[%clk 0:02:55]} 9. Be3 {[%clk 0:03:01]}  Rb8 {[%clk 0:02:44]} 10. Nbd2 {[%clk 0:03:01]}  O-O {[%clk 0:02:43]} 11. h3 {[%clk 0:03:00]}  h6 {[%clk 0:02:22]} 12. Re1 {[%clk 0:03:00]}  Re8 {[%clk 0:02:18]} 13. Rc1 {[%clk 0:03:00]}  Bb7 {[%clk 0:02:08]} 14. d5 {[%clk 0:02:54]}  Ne7 {[%clk 0:02:07]} 15. Bxb6 {[%clk 0:02:54]}  cxb6 {[%clk 0:02:06]} 16. c4 {[%clk 0:02:50]}  bxc4 {[%clk 0:01:51]} 17. Bxc4 {[%clk 0:02:51]}  Ng6 {[%clk 0:01:44]} 18. Bf1 {[%clk 0:02:51]}  b5 {[%clk 0:01:33]} 19. b4 {[%clk 0:02:48]}  Qb6 {[%clk 0:01:26]} 20. Nb3 {[%clk 0:02:46]}  Rbc8 {[%clk 0:01:22]} 21. g3 {[%clk 0:02:37]}  Rxc1 {[%clk 0:01:16]} 22. Qxc1 {[%clk 0:02:38]}  Rc8 {[%clk 0:01:10]} 23. Qd2 {[%clk 0:02:36]}  Rc7 {[%clk 0:01:10]} 24. Na5 {[%clk 0:02:21]}  Bc8 {[%clk 0:01:07]} 25. Kg2 {[%clk 0:02:06]}  Bd7 {[%clk 0:01:01]} 26. Bd3 {[%clk 0:02:00]}  Qb8 {[%clk 0:00:54]} 27. Rc1 {[%clk 0:01:57]}  Bxh3+ {[%clk 0:00:52]} 28. Kg1 {[%clk 0:01:49]}  Qc8 {[%clk 0:00:42]} 29. Rxc7 {[%clk 0:01:48]}  Qxc7 {[%clk 0:00:42]} 30. Qc2 {[%clk 0:01:43]}  Qd7 {[%clk 0:00:31]} 31. Nh2 {[%clk 0:01:43]}  Ne7 {[%clk 0:00:29]} 32. Nc6 {[%clk 0:01:37]}  Kh7 {[%clk 0:00:19]} 33. a4 {[%clk 0:01:23]}  bxa4 {[%clk 0:00:10]} 34. Qxa4 {[%clk 0:01:24]}  Qc7 {[%clk 0:00:08]} 35. Qxa6 {[%clk 0:01:22]}  Nc8 {[%clk 0:00:08]} 36. Qa5 {[%clk 0:01:08]}  Nb6 {[%clk 0:00:06]} 37. Qa7 {[%clk 0:01:08]}  Qxa7 {[%clk 0:00:06]} 38. Nxa7 {[%clk 0:01:08]}  Bd7 {[%clk 0:00:06]} 39. f3 {[%clk 0:01:06]}  Ne8 {[%clk 0:00:06]} 40. Nf1 {[%clk 0:01:05]}  g6 {[%clk 0:00:06]} 41. Ne3 {[%clk 0:01:05]}  Nc7 {[%clk 0:00:06]} 42. Nc4 {[%clk 0:01:00]}  Nxc4 {[%clk 0:00:06]} 43. Bxc4 {[%clk 0:01:01]}  Na8 {[%clk 0:00:06]} 44. Bb5 {[%clk 0:01:01]}  Bxb5 {[%clk 0:00:06]} 45. Nxb5 {[%clk 0:01:01]}  Nb6 {[%clk 0:00:07]} 46. Nxd6 {[%clk 0:01:02]}  Kg7 {[%clk 0:00:07]} 47. Kf2 {[%clk 0:00:55]}  Kf6 {[%clk 0:00:07]} 48. f4 {[%clk 0:00:55]}  g5 {[%clk 0:00:06]} 49. Kf3 {[%clk 0:00:45]}  gxf4 {[%clk 0:00:03]} 50. gxf4 {[%clk 0:00:46]}  Na4 {[%clk 0:00:03]} 51. fxe5+ {[%clk 0:00:46]}  Kxe5 {[%clk 0:00:03]} 52. Nxf7+ {[%clk 0:00:46]}  Kf6 {[%clk 0:00:03]} 53. Nxh6 {[%clk 0:00:47]}  Nc3 {[%clk 0:00:03]} 54. Ng4+ {[%clk 0:00:47]}  Ke7 {[%clk 0:00:03]} 55. Kf4 {[%clk 0:00:47]}  Na2 {[%clk 0:00:03]} 56. b5 {[%clk 0:00:47]}  Nc3 {[%clk 0:00:04]} 57. b6 {[%clk 0:00:47]}  Kd6 {[%clk 0:00:02]} 58. Nf6 {[%clk 0:00:46]}  Na4 {[%clk 0:00:01]} 59. b7 {[%clk 0:00:45]}  Kc7 {[%clk 0:00:02]} 60. e5 {[%clk 0:00:45]}  Kxb7 {[%clk 0:00:02]} 61. e6 {[%clk 0:00:45]}  Nc3 {[%clk 0:00:01]} 62. e7 {[%clk 0:00:45]} 1-0


[Site "https://www.chess.com"]

[Event "Titled Tuesday Blitz May 17 Early 2022"]
[White "Rohith Krishna S"]
[Black "Ciorgovean, Iustin"]
[WhiteFideId "46617051"]
[BlackFideId "1242911"]
[WhiteElo "2117"]
[BlackElo "2075"]
[Result "0-1"]
[Round "09"]
[TimeControl "180+1"]
[Date "2022.05.17"]
[WhiteClock "0:00:20"]
[BlackClock "0:00:09"]

1. Nf3 {[%clk 0:02:58]}  c5 {[%clk 0:02:58]} 2. g3 {[%clk 0:02:50]}  Nc6 {[%clk 0:02:57]} 3. Bg2 {[%clk 0:02:49]}  e5 {[%clk 0:02:57]} 4. O-O {[%clk 0:02:50]}  d5 {[%clk 0:02:57]} 5. c4 {[%clk 0:02:50]}  d4 {[%clk 0:02:56]} 6. d3 {[%clk 0:02:51]}  Nf6 {[%clk 0:02:53]} 7. a3 {[%clk 0:02:50]}  a5 {[%clk 0:02:52]} 8. Nbd2 {[%clk 0:02:50]}  h6 {[%clk 0:02:49]} 9. e3 {[%clk 0:02:48]}  Bd6 {[%clk 0:02:49]} 10. exd4 {[%clk 0:02:48]}  cxd4 {[%clk 0:02:49]} 11. Rb1 {[%clk 0:02:49]}  O-O {[%clk 0:02:44]} 12. Re1 {[%clk 0:02:43]}  Re8 {[%clk 0:02:41]} 13. h3 {[%clk 0:02:34]}  a4 {[%clk 0:02:30]} 14. g4 {[%clk 0:02:31]}  Bf8 {[%clk 0:02:09]} 15. Nh2 {[%clk 0:02:27]}  Nd7 {[%clk 0:02:02]} 16. Ne4 {[%clk 0:02:26]}  Nc5 {[%clk 0:02:02]} 17. Nxc5 {[%clk 0:02:26]}  Bxc5 {[%clk 0:02:03]} 18. Nf1 {[%clk 0:02:26]}  f5 {[%clk 0:01:45]} 19. Ng3 {[%clk 0:02:19]}  f4 {[%clk 0:01:36]} 20. Ne4 {[%clk 0:02:00]}  Bf8 {[%clk 0:01:34]} 21. b4 {[%clk 0:01:50]}  axb3 {[%clk 0:01:32]} 22. Rxb3 {[%clk 0:01:49]}  Ra7 {[%clk 0:01:15]} 23. Qc2 {[%clk 0:01:29]}  Be6 {[%clk 0:01:09]} 24. Qb1 {[%clk 0:01:29]}  Qd7 {[%clk 0:01:07]} 25. f3 {[%clk 0:01:25]}  Bf7 {[%clk 0:01:04]} 26. h4 {[%clk 0:01:23]}  Be7 {[%clk 0:01:01]} 27. h5 {[%clk 0:01:21]}  Rea8 {[%clk 0:00:57]} 28. Bf1 {[%clk 0:01:21]}  Nd8 {[%clk 0:00:48]} 29. Rb5 {[%clk 0:01:19]}  Qc7 {[%clk 0:00:41]} 30. Nf2 {[%clk 0:01:09]}  Nc6 {[%clk 0:00:37]} 31. Re2 {[%clk 0:01:07]}  Bd6 {[%clk 0:00:22]} 32. Ne4 {[%clk 0:01:07]}  Be7 {[%clk 0:00:23]} 33. Re1 {[%clk 0:01:04]}  Nd8 {[%clk 0:00:23]} 34. Nd2 {[%clk 0:00:57]}  Bf6 {[%clk 0:00:20]} 35. Nb3 {[%clk 0:00:56]}  Be8 {[%clk 0:00:17]} 36. Rc5 {[%clk 0:00:55]}  Bc6 {[%clk 0:00:17]} 37. Be2 {[%clk 0:00:52]}  Qd6 {[%clk 0:00:16]} 38. Bd2 {[%clk 0:00:50]}  Ne6 {[%clk 0:00:16]} 39. Bb4 {[%clk 0:00:50]}  Nxc5 {[%clk 0:00:16]} 40. Bxc5 {[%clk 0:00:50]}  Qd8 {[%clk 0:00:15]} 41. Bxa7 {[%clk 0:00:47]}  Rxa7 {[%clk 0:00:16]} 42. Nc5 {[%clk 0:00:46]}  Qd6 {[%clk 0:00:14]} 43. Qb6 {[%clk 0:00:43]}  Rxa3 {[%clk 0:00:13]} 44. Nxb7 {[%clk 0:00:43]}  Qd7 {[%clk 0:00:12]} 45. Nc5 {[%clk 0:00:43]}  Qd6 {[%clk 0:00:12]} 46. Ne4 {[%clk 0:00:43]}  Qd7 {[%clk 0:00:13]} 47. Rb1 {[%clk 0:00:39]}  Kh7 {[%clk 0:00:12]} 48. Nxf6+ {[%clk 0:00:38]}  gxf6 {[%clk 0:00:12]} 49. Qc5 {[%clk 0:00:37]}  Ra7 {[%clk 0:00:11]} 50. Rb8 {[%clk 0:00:36]}  Rb7 {[%clk 0:00:08]} 51. Rf8 {[%clk 0:00:36]}  Kg7 {[%clk 0:00:07]} 52. Kf2 {[%clk 0:00:32]}  Qe7 {[%clk 0:00:05]} 53. Qxe7+ {[%clk 0:00:29]}  Rxe7 {[%clk 0:00:06]} 54. Rc8 {[%clk 0:00:30]}  Bd7 {[%clk 0:00:06]} 55. Rc7 {[%clk 0:00:30]}  Kf7 {[%clk 0:00:06]} 56. Bd1 {[%clk 0:00:25]}  Be6 {[%clk 0:00:07]} 57. Rc5 {[%clk 0:00:20]}  Ra7 {[%clk 0:00:07]} 58. Rb5 {[%clk 0:00:18]}  Ke7 {[%clk 0:00:07]} 59. Ke1 {[%clk 0:00:18]}  Kd7 {[%clk 0:00:06]} 60. Rb2 {[%clk 0:00:17]}  Kc7 {[%clk 0:00:06]} 61. Kd2 {[%clk 0:00:18]}  Bd7 {[%clk 0:00:06]} 62. Be2 {[%clk 0:00:18]}  Bc6 {[%clk 0:00:06]} 63. Bd1 {[%clk 0:00:18]}  Ra3 {[%clk 0:00:06]} 64. Kc1 {[%clk 0:00:16]}  Rxd3 {[%clk 0:00:05]} 65. Kc2 {[%clk 0:00:16]}  Rc3+ {[%clk 0:00:05]} 66. Kd2 {[%clk 0:00:17]}  Bxf3 {[%clk 0:00:06]} 67. Ba4 {[%clk 0:00:17]}  Bxg4 {[%clk 0:00:06]} 68. Be8 {[%clk 0:00:17]}  Bf5 {[%clk 0:00:04]} 69. Bg6 {[%clk 0:00:17]}  Bxg6 {[%clk 0:00:05]} 70. hxg6 {[%clk 0:00:18]}  Rg3 {[%clk 0:00:05]} 71. c5 {[%clk 0:00:18]}  Rxg6 {[%clk 0:00:06]} 72. Rb6 {[%clk 0:00:18]}  Rg3 {[%clk 0:00:04]} 73. Rxf6 {[%clk 0:00:17]}  Rc3 {[%clk 0:00:05]} 74. Rxh6 {[%clk 0:00:16]}  Rxc5 {[%clk 0:00:05]} 75. Kd3 {[%clk 0:00:17]}  Rc3+ {[%clk 0:00:06]} 76. Ke4 {[%clk 0:00:17]}  Re3+ {[%clk 0:00:06]} 77. Kd5 {[%clk 0:00:18]}  d3 {[%clk 0:00:07]} 78. Rh7+ {[%clk 0:00:18]}  Kb6 {[%clk 0:00:07]} 79. Rh8 {[%clk 0:00:19]}  d2 {[%clk 0:00:07]} 80. Rb8+ {[%clk 0:00:20]}  Kc7 {[%clk 0:00:07]} 81. Rb1 {[%clk 0:00:19]}  Rd3+ {[%clk 0:00:08]} 82. Kc5 {[%clk 0:00:19]}  d1=Q {[%clk 0:00:09]} 83. Rxd1 {[%clk 0:00:20]}  Rxd1 {[%clk 0:00:09]} 0-1


[Site "https://www.chess.com"]

[Event "Titled Tuesday Blitz May 17 Early 2022"]
[White "Sadhwani, Raunak"]
[Black "Yeletsky, Ivan"]
[WhiteFideId "35093487"]
[BlackFideId "24180327"]
[WhiteElo "2616"]
[BlackElo "2319"]
[Result "1-0"]
[Round "09"]
[TimeControl "180+1"]
[Date "2022.05.17"]
[WhiteClock "0:00:39"]
[BlackClock "0:00:20"]

1. e4 {[%clk 0:03:00]}  c5 {[%clk 0:02:59]} 2. Nf3 {[%clk 0:03:00]}  d6 {[%clk 0:02:59]} 3. d4 {[%clk 0:03:01]}  cxd4 {[%clk 0:03:00]} 4. Nxd4 {[%clk 0:03:02]}  Nf6 {[%clk 0:03:01]} 5. Nc3 {[%clk 0:03:03]}  a6 {[%clk 0:03:01]} 6. h3 {[%clk 0:03:03]}  e5 {[%clk 0:03:00]} 7. Nb3 {[%clk 0:03:03]}  Be6 {[%clk 0:02:55]} 8. f4 {[%clk 0:03:00]}  b5 {[%clk 0:02:52]} 9. f5 {[%clk 0:03:00]}  Bc8 {[%clk 0:02:46]} 10. Bg5 {[%clk 0:02:59]}  Nbd7 {[%clk 0:02:46]} 11. Qf3 {[%clk 0:02:56]}  Bb7 {[%clk 0:02:44]} 12. O-O-O {[%clk 0:02:57]}  Be7 {[%clk 0:02:41]} 13. Bxf6 {[%clk 0:02:50]}  Nxf6 {[%clk 0:02:40]} 14. Kb1 {[%clk 0:02:45]}  Rc8 {[%clk 0:02:35]} 15. Nd5 {[%clk 0:02:46]}  Bxd5 {[%clk 0:02:25]} 16. exd5 {[%clk 0:02:47]}  h5 {[%clk 0:02:13]} 17. g3 {[%clk 0:02:35]}  Qb6 {[%clk 0:01:41]} 18. Bd3 {[%clk 0:02:15]}  a5 {[%clk 0:01:41]} 19. g4 {[%clk 0:02:15]}  a4 {[%clk 0:01:38]} 20. Nd2 {[%clk 0:02:15]}  a3 {[%clk 0:01:32]} 21. g5 {[%clk 0:02:15]}  Nd7 {[%clk 0:01:17]} 22. f6 {[%clk 0:02:14]}  Qd4 {[%clk 0:01:17]} 23. bxa3 {[%clk 0:01:57]}  gxf6 {[%clk 0:01:17]} 24. Bf5 {[%clk 0:01:49]}  fxg5 {[%clk 0:01:05]} 25. Ne4 {[%clk 0:01:38]}  Qc4 {[%clk 0:01:06]} 26. Rh2 {[%clk 0:01:35]}  Nc5 {[%clk 0:01:02]} 27. Rf2 {[%clk 0:01:18]}  Nxe4 {[%clk 0:00:57]} 28. Bxe4 {[%clk 0:01:18]}  Rf8 {[%clk 0:00:48]} 29. Bd3 {[%clk 0:01:06]}  g4 {[%clk 0:00:44]} 30. Qf5 {[%clk 0:01:04]}  Qc5 {[%clk 0:00:38]} 31. hxg4 {[%clk 0:00:52]}  hxg4 {[%clk 0:00:38]} 32. Qxg4 {[%clk 0:00:51]}  b4 {[%clk 0:00:25]} 33. a4 {[%clk 0:00:41]}  e4 {[%clk 0:00:20]} 34. Bb5+ {[%clk 0:00:39]} 1-0


[Site "https://www.chess.com"]

[Event "Titled Tuesday Blitz May 17 Early 2022"]
[White "Samunenkov, Ihor"]
[Black "De Silva, L M S T"]
[WhiteFideId "14187086"]
[BlackFideId "9953698"]
[WhiteElo "2409"]
[BlackElo "1631"]
[Result "0-1"]
[Round "09"]
[TimeControl "180+1"]
[Date "2022.05.17"]
[WhiteClock "0:00:01"]
[BlackClock "0:00:18"]

1. e4 {[%clk 0:03:00]}  e5 {[%clk 0:03:00]} 2. Nf3 {[%clk 0:03:00]}  Nc6 {[%clk 0:03:00]} 3. Bb5 {[%clk 0:03:01]}  a6 {[%clk 0:03:00]} 4. Ba4 {[%clk 0:03:00]}  Nf6 {[%clk 0:03:00]} 5. O-O {[%clk 0:03:00]}  Be7 {[%clk 0:02:59]} 6. Re1 {[%clk 0:03:00]}  b5 {[%clk 0:02:59]} 7. Bb3 {[%clk 0:03:00]}  O-O {[%clk 0:03:00]} 8. a4 {[%clk 0:03:00]}  Bb7 {[%clk 0:03:00]} 9. d3 {[%clk 0:03:00]}  d5 {[%clk 0:02:58]} 10. exd5 {[%clk 0:02:49]}  Nxd5 {[%clk 0:02:59]} 11. axb5 {[%clk 0:02:50]}  axb5 {[%clk 0:02:59]} 12. Rxa8 {[%clk 0:02:51]}  Bxa8 {[%clk 0:02:59]} 13. Nxe5 {[%clk 0:02:48]}  Nd4 {[%clk 0:03:00]} 14. c3 {[%clk 0:02:27]}  Nxb3 {[%clk 0:02:57]} 15. Qxb3 {[%clk 0:02:28]}  Bd6 {[%clk 0:02:57]} 16. Nd2 {[%clk 0:02:09]}  Nf4 {[%clk 0:02:45]} 17. Ndf3 {[%clk 0:01:51]}  Bxe5 {[%clk 0:02:32]} 18. Nxe5 {[%clk 0:01:37]}  Nxg2 {[%clk 0:02:29]} 19. Rd1 {[%clk 0:01:35]}  Nh4 {[%clk 0:02:19]} 20. Qxb5 {[%clk 0:01:21]}  Qf6 {[%clk 0:02:15]} 21. d4 {[%clk 0:00:33]}  Nf3+ {[%clk 0:01:44]} 22. Kf1 {[%clk 0:00:33]}  Nxh2+ {[%clk 0:01:38]} 23. Ke2 {[%clk 0:00:22]}  Nf3 {[%clk 0:00:48]} 24. Be3 {[%clk 0:00:21]}  Nxe5 {[%clk 0:00:46]} 25. dxe5 {[%clk 0:00:19]}  Qf3+ {[%clk 0:00:45]} 26. Ke1 {[%clk 0:00:16]}  Bc6 {[%clk 0:00:40]} 27. Qe2 {[%clk 0:00:10]}  Qh1+ {[%clk 0:00:37]} 28. Kd2 {[%clk 0:00:10]}  Rd8+ {[%clk 0:00:36]} 29. Kc1 {[%clk 0:00:09]}  Qh4 {[%clk 0:00:22]} 30. Rxd8+ {[%clk 0:00:02]}  Qxd8 {[%clk 0:00:23]} 31. f4 {[%clk 0:00:01]}  Qd5 {[%clk 0:00:20]} 32. Bd4 {[%clk 0:00:01]}  h5 {[%clk 0:00:20]} 33. Kd2 {[%clk 0:00:01]}  h4 {[%clk 0:00:20]} 34. Qh2 {[%clk 0:00:01]}  Qd8 {[%clk 0:00:18]} 0-1


[Site "https://www.chess.com"]

[Event "Titled Tuesday Blitz May 17 Early 2022"]
[White "Sarana, Alexey"]
[Black "Andreikin, Dmitry"]
[WhiteFideId "24133795"]
[BlackFideId "4158814"]
[WhiteElo "2666"]
[BlackElo "2736"]
[Result "1/2-1/2"]
[Round "09"]
[TimeControl "180+1"]
[Date "2022.05.17"]
[WhiteClock "0:01:36"]
[BlackClock "0:01:06"]

1. d4 {[%clk 0:02:22]}  Nf6 {[%clk 0:03:00]} 2. c4 {[%clk 0:02:23]}  e6 {[%clk 0:03:00]} 3. Nc3 {[%clk 0:02:24]}  Bb4 {[%clk 0:02:59]} 4. e3 {[%clk 0:02:23]}  O-O {[%clk 0:02:59]} 5. Bd3 {[%clk 0:02:24]}  d5 {[%clk 0:02:56]} 6. a3 {[%clk 0:02:24]}  Be7 {[%clk 0:02:53]} 7. Nf3 {[%clk 0:02:23]}  c5 {[%clk 0:02:48]} 8. cxd5 {[%clk 0:02:21]}  cxd4 {[%clk 0:02:48]} 9. Nxd4 {[%clk 0:02:20]}  Nxd5 {[%clk 0:02:48]} 10. Nxd5 {[%clk 0:02:20]}  Qxd5 {[%clk 0:02:49]} 11. Qc2 {[%clk 0:02:20]}  Qh5 {[%clk 0:02:39]} 12. O-O {[%clk 0:02:18]}  Bf6 {[%clk 0:02:36]} 13. Be4 {[%clk 0:02:16]}  Nd7 {[%clk 0:02:30]} 14. Bd2 {[%clk 0:02:12]}  Bxd4 {[%clk 0:02:22]} 15. exd4 {[%clk 0:02:11]}  Nf6 {[%clk 0:02:23]} 16. Bf3 {[%clk 0:02:12]}  Qg6 {[%clk 0:02:23]} 17. Rac1 {[%clk 0:02:09]}  Nd5 {[%clk 0:02:21]} 18. Qxg6 {[%clk 0:02:06]}  hxg6 {[%clk 0:02:21]} 19. Bxd5 {[%clk 0:02:06]}  exd5 {[%clk 0:02:22]} 20. Rc7 {[%clk 0:02:07]}  Re8 {[%clk 0:02:17]} 21. Be3 {[%clk 0:02:04]}  b6 {[%clk 0:02:11]} 22. Rfc1 {[%clk 0:02:01]}  Ba6 {[%clk 0:02:07]} 23. b3 {[%clk 0:01:59]}  Bd3 {[%clk 0:01:58]} 24. h3 {[%clk 0:01:58]}  a5 {[%clk 0:01:57]} 25. a4 {[%clk 0:01:57]}  Rab8 {[%clk 0:01:53]} 26. Ra7 {[%clk 0:01:55]}  Rec8 {[%clk 0:01:48]} 27. Rac7 {[%clk 0:01:45]}  Rxc7 {[%clk 0:01:28]} 28. Rxc7 {[%clk 0:01:46]}  Be2 {[%clk 0:01:29]} 29. Bf4 {[%clk 0:01:43]}  Re8 {[%clk 0:01:12]} 30. Rc1 {[%clk 0:01:39]}  Bd3 {[%clk 0:01:06]} 31. Be3 {[%clk 0:01:36]} 1/2-1/2


[Site "https://www.chess.com"]